[Event "41st Jacques-Lemans-Open 2022"]
[Site "St. Veit/Glan"]
[Date "2022.07.09"]
[Round "1.18"]
[White "Bauer, Thomas"]
[Black "Elpons, Walter"]
[Result "1-0"]
[ECO "B53"]
[WhiteElo "2228"]
[BlackElo "1952"]
[Annotator "RC"]
[PlyCount "149"]
[EventDate "2022.07.09"]
[EventType "swiss"]
[EventCountry "AUT"]
[SourceTitle "playchess.com"]
[Source "ChessBase"]
[SourceQuality "1"]
[TimeControl "40/5400+30:1800+30"]

1. e4 {[%emt 0:00:06]} c5 {[%emt 0:00:10]} 2. Nf3 {[%emt 0:00:06]} d6 {[%emt 0:00:06]} 3. d4 {[%emt 0:00:22]} cxd4 {[%emt 0:00:15]} 4. Qxd4 {[%emt 0:01:16]} Nc6 {[%emt 0:01:01]} 5. Qe3 {[%emt 0:05:48]} Nf6 {[%emt 0:02:18]} 6. Bd2 {[%emt 0:04:48]} e6 {[%emt 0:12:06]} 7. Nc3 {[%emt 0:01:19]} Be7 {[%emt 0:01:41]} 8. O-O-O {[%emt 0:00:03]} O-O {[%emt 0:04:05]} 9. Rg1 {[%emt 0:04:54]} e5 {[%emt 0:06:15]} 10. h3 {[%emt 0:00:22]} Be6 {[%emt 0:00:47]} 11. Ng5 {[%emt 0:08:28]} d5 {[%emt 0:07:56]} 12. exd5 {[%emt 0:03:16]} Nxd5 {[%emt 0:01:20]} 13. Nxe6 {[%emt 0:06:31]} fxe6 {[%emt 0:01:43]} 14. Qe1 {[%emt 0:12:38]} Qc7 {[%emt 0:18:09]} 15. Bc4 {[%emt 0:10:53]} Rad8 {[%emt 0:06:04]} 16. Qe4 {[%emt 0:07:50]} Nd4 {[%emt 0:03:12]} 17. Bxd5 {[%emt 0:08:06]} exd5 {[%emt 0:03:02]} 18. Nxd5 {[%emt 0:01:54]} Qc5 {[%emt 0:03:37]} 19. Nxe7+ {[%emt 0:03:14]} Qxe7 {[%emt 0:00:18]} 20. c3 {[%emt 0:01:39]} Qc5 {[%emt 0:06:35]} 21. Kb1 {[%emt 0:01:44]} Nb5 {[%emt 0:02:13]} 22. Qe3 {[%emt 0:08:44]} Qc6 {[%emt 0:03:03]} 23. f3 {[%emt 0:00:03]} Nd6 {[%emt 0:01:25]} 24. Bc1 {[%emt 0:01:36]} Nc4 {[%emt 0:00:28]} 25. Qe2 {[%emt 0:01:32]} Qb5 {[%emt 0:01:25]} 26. Ka1 {[%emt 0:00:01]} Qc5 {[%emt 0:00:58]} 27. Qe4 {[%emt 0:01:37]} Qb5 {[%emt 0:01:30]} 28. b3 {[%emt 0:00:58]} Na5 {[%emt 0:01:03]} 29. Qc2 {[%emt 0:01:49]} Nc6 {[%emt 0:00:58]} 30. Ba3 {[%emt 0:00:26]} Rfe8 {[%emt 0:00:26]} 31. Rge1 {[%emt 0:00:14]} Qb6 {[%emt 0:00:46]} 32. Qe2 {[%emt 0:00:32]} Qc7 {[%emt 0:00:44]} 33. Bb2 {[%emt 0:00:52]} Qe7 {[%emt 0:01:25]} 34. Qe4 {[%emt 0:00:53]} Qc5 {[%emt 0:00:28]} 35. Qe2 {[%emt 0:01:11]} Qe7 {[%emt 0:00:55]} 36. Qf2 {[%emt 0:00:14]} Qc7 {[%emt 0:00:28]} 37. Qc5 {[%emt 0:00:32]} Qf7 {[%emt 0:01:03]} 38. Qe3 {[%emt 0:01:22]} Qe7 {[%emt 0:00:35]} 39. Bc1 {[%emt 0:00:22]} Qf7 {[%emt 0:00:47]} 40. Qe4 {[%emt 0:00:47]} Qe7 {[%emt 0:03:22]} 41. Be3 {[%emt 0:04:12]} Qf6 {[%emt 0:05:26]} 42. h4 {[%emt 0:02:03]} h6 {[%emt 0:01:23]} 43. Bf2 {[%emt 0:00:09]} Qe7 {[%emt 0:01:52]} 44. Kb2 {[%emt 0:03:21]} Qf6 {[%emt 0:03:32]} 45. h5 {[%emt 0:01:42]} Qf7 {[%emt 0:01:04]} 46. g4 {[%emt 0:03:23]} Rf8 {[%emt 0:01:09]} 47. Rxd8 {[%emt 0:00:03]} Rxd8 {[%emt 0:00:51]} 48. Be3 {[%emt 0:01:17]} Qf6 {[%emt 0:02:27]} 49. Rg1 {[%emt 0:02:48]} Qh4 {[%emt 0:01:59]} 50. g5 {[%emt 0:02:49]} Qxe4 {[%emt 0:04:33]} 51. fxe4 {[%emt 0:00:07]} Rd3 {[%emt 0:00:54]} 52. Re1 {[%emt 0:04:22]} hxg5 {[%emt 0:00:19]} 53. Kc2 {[%emt 0:00:02]} Rd7 {[%emt 0:00:42]} 54. Bxg5 {[%emt 0:00:02]} Rf7 {[%emt 0:00:27]} 55. Rg1 {[%emt 0:02:07]} Rf2+ {[%emt 0:00:28]} 56. Kd3 {[%emt 0:01:12]} Kf7 {[%emt 0:01:19]} 57. Bd2 {[%emt 0:01:16]} Rh2 {[%emt 0:01:23]} 58. Rg5 {[%emt 0:00:05]} Kf6 {[%emt 0:00:27]} 59. Rg6+ {[%emt 0:01:22]} Kf7 {[%emt 0:00:23]} 60. Rg5 {[%emt 0:00:02]} Kf6 {[%emt 0:00:08]} 61. Rf5+ {[%emt 0:00:03]} Ke6 {[%emt 0:00:27]} 62. a4 {[%emt 0:05:06]} Ne7 {[%emt 0:00:29]} 63. Rg5 {[%emt 0:00:17]} Kf6 {[%emt 0:00:30]} 64. Be3 {[%emt 0:00:31]} Rh3 {[%emt 0:00:31]} 65. Rg2 {[%emt 0:01:11]} Rxh5 {[%emt 0:00:22]} 66. Bxa7 {[%emt 0:00:18]} g5 {[%emt 0:01:09]} 67. Bb6 {[%emt 0:00:42]} Rh8 {[%emt 0:02:27]} 68. b4 {[%emt 0:00:39]} Ng6 {[%emt 0:00:39]} 69. Kc4 {[%emt 0:00:57]} Rc8+ {[%emt 0:00:46]} 70. Kb3 {[%emt 0:00:45]} Nf4 {[%emt 0:02:36]} 71. Rg3 {[%emt 0:00:05]} Rg8 {[%emt 0:00:34]} 72. Rg4 {[%emt 0:00:58]} Rh8 {[%emt 0:01:15]} 73. a5 {[%emt 0:00:16]} Ne6 {[%emt 0:01:08]} 74. Be3 {[%emt 0:00:26]} Rh4 {[%emt 0:00:39]} 75. Bxg5+ {[%emt 0:00:41]} 1-0

[Event "41st Jacques-Lemans-Open 2022"]
[Site "St. Veit/Glan"]
[Date "2022.07.09"]
[Round "1.19"]
[White "Rempe, Jonas"]
[Black "Manhardt, Thomas"]
[Result "0-1"]
[ECO "B32"]
[WhiteElo "1861"]
[BlackElo "2227"]
[Annotator "RC"]
[PlyCount "126"]
[EventDate "2022.07.09"]
[EventType "swiss"]
[EventCountry "AUT"]
[SourceTitle "playchess.com"]
[Source "ChessBase"]
[SourceQuality "1"]
[TimeControl "40/5400+30:1800+30"]

1. e4 {[%emt 0:00:04]} c5 {[%emt 0:00:18]} 2. Nf3 {[%emt 0:00:04]} Nc6 {[%emt 0:00:06]} 3. d4 {[%emt 0:00:04]} cxd4 {[%emt 0:00:05]} 4. Nxd4 {[%emt 0:00:03]} e5 {[%emt 0:00:48]} 5. Nb5 {[%emt 0:15:03]} a6 {[%emt 0:01:36]} 6. Nd6+ {[%emt 0:05:27]} Bxd6 {[%emt 0:00:05]} 7. Qxd6 {[%emt 0:00:02]} Qf6 {[%emt 0:00:17]} 8. Qxf6 {[%emt 0:02:50]} Nxf6 {[%emt 0:06:21]} 9. Nc3 {[%emt 0:00:08]} Nb4 {[%emt 0:01:32]} 10. Bd3 {[%emt 0:01:06]} d6 {[%emt 0:01:00]} 11. a3 {[%emt 0:23:35]} Nxd3+ {[%emt 0:10:59]} 12. cxd3 {[%emt 0:00:28]} Be6 {[%emt 0:00:07]} 13. Bg5 {[%emt 0:05:49]} Bb3 {[%emt 0:14:30]} 14. Rc1 {[%emt 0:15:21]} Rc8 {[%emt 0:03:16]} 15. Kd2 {[%emt 0:04:16]} Rc6 {[%emt 0:17:51]} 16. Bxf6 {[%emt 0:07:55]} gxf6 {[%emt 0:01:15]} 17. Ne2 {[%emt 0:00:01]} Kd7 {[%emt 0:02:56]} 18. Rc3 {[%emt 0:03:44]} Be6 {[%emt 0:03:37]} 19. Rhc1 {[%emt 0:01:42]} d5 {[%emt 0:07:25]} 20. f4 {[%emt 0:04:44]} Kd6 {[%emt 0:04:54]} 21. Rxc6+ {[%emt 0:04:31]} bxc6 {[%emt 0:00:02]} 22. f5 {[%emt 0:00:01]} Bd7 {[%emt 0:00:27]} 23. Nc3 {[%emt 0:01:38]} a5 {[%emt 0:10:39]} 24. Na4 {[%emt 0:01:22]} Rb8 {[%emt 0:00:40]} 25. Rc2 {[%emt 0:00:01]} Rb5 {[%emt 0:04:23]} 26. Nc3 {[%emt 0:00:33]} Rb3 {[%emt 0:01:36]} 27. Na4 {[%emt 0:00:23]} Rb5 {[%emt 0:01:48]} 28. Nc3 {[%emt 0:00:02]} Rb8 {[%emt 0:01:25]} 29. Na4 {[%emt 0:00:39]} d4 {[%emt 0:00:33]} 30. Kc1 {[%emt 0:03:02]} Bc8 {[%emt 0:01:34]} 31. Kb1 {[%emt 0:00:39]} Rb3 {[%emt 0:02:18]} 32. Nc5 {[%emt 0:00:28]} Rb5 {[%emt 0:00:05]} 33. Na4 {[%emt 0:00:01]} Ba6 {[%emt 0:01:43]} 34. Ka2 {[%emt 0:00:49]} Bc8 {[%emt 0:00:30]} 35. b3 {[%emt 0:00:11]} Ba6 {[%emt 0:00:22]} 36. Nb2 {[%emt 0:00:10]} Rb8 {[%emt 0:00:20]} 37. Nc4+ {[%emt 0:00:26]} Bxc4 {[%emt 0:00:23]} 38. bxc4 {[%emt 0:00:39]} h5 {[%emt 0:01:02]} 39. Rb2 {[%emt 0:00:27]} Rg8 {[%emt 0:00:38]} 40. Kb1 {[%emt 0:00:01]} Kc7 {[%emt 0:00:28]} 41. Kc1 {[%emt 0:30:05]} h4 {[%emt 0:06:11]} 42. Kd1 {[%emt 0:00:00]} Rg5 {[%emt 0:07:15]} 43. Ke1 {[%emt 0:00:00]} Rg4 {[%emt 0:00:16]} 44. Kf1 {[%emt 0:00:00]} Rg8 {[%emt 0:02:32]} 45. c5 {[%emt 0:00:00]} a4 {[%emt 0:05:01]} 46. Rb4 {[%emt 0:00:00]} Ra8 {[%emt 0:00:45]} 47. Kf2 {[%emt 0:00:00]} Ra5 {[%emt 0:00:02]} 48. Rc4 {[%emt 0:00:00]} Kd7 {[%emt 0:06:19]} 49. Kf3 {[%emt 0:01:29]} Rb5 {[%emt 0:00:12]} 50. Rxa4 {[%emt 0:01:18]} Rxc5 {[%emt 0:00:02]} 51. Ra7+ {[%emt 0:01:20]} Ke8 {[%emt 0:00:36]} 52. a4 {[%emt 0:01:42]} Rc3 {[%emt 0:00:18]} 53. a5 {[%emt 0:00:48]} Rxd3+ {[%emt 0:00:05]} 54. Ke2 {[%emt 0:01:02]} Ra3 {[%emt 0:02:40]} 55. a6 {[%emt 0:00:38]} c5 {[%emt 0:00:25]} 56. Ra8+ {[%emt 0:01:07]} Ke7 {[%emt 0:00:10]} 57. a7 {[%emt 0:00:04]} c4 {[%emt 0:00:29]} 58. Rc8 {[%emt 0:00:53]} Rxa7 {[%emt 0:00:10]} 59. Rxc4 {[%emt 0:00:01]} Ra3 {[%emt 0:00:31]} 60. Rc7+ {[%emt 0:00:40]} Kf8 {[%emt 0:00:21]} 61. Kd2 {[%emt 0:00:52]} Re3 {[%emt 0:02:06]} 62. Ra7 {[%emt 0:00:31]} Rxe4 {[%emt 0:00:19]} 63. Ra3 {[%emt 0:00:03]} Rf4 {[%emt 0:00:44]} 0-1

[Event "41st Jacques-Lemans-Open 2022"]
[Site "St. Veit/Glan"]
[Date "2022.07.09"]
[Round "1.20"]
[White "Hechl, Gerald"]
[Black "Klausner, Felix"]
[Result "1-0"]
[ECO "B50"]
[WhiteElo "2222"]
[BlackElo "1943"]
[Annotator "RC"]
[PlyCount "51"]
[EventDate "2022.07.09"]
[EventType "swiss"]
[EventCountry "AUT"]
[SourceTitle "playchess.com"]
[Source "ChessBase"]
[SourceQuality "1"]
[TimeControl "40/5400+30:1800+30"]

1. e4 {[%emt 0:00:05]} c5 {[%emt 0:00:12]} 2. Nf3 {[%emt 0:00:04]} d6 {[%emt 0:00:10]} 3. d3 {[%emt 0:01:44]} Nc6 {[%emt 0:01:38]} 4. g3 {[%emt 0:00:34]} g6 {[%emt 0:05:21]} 5. Bg2 {[%emt 0:00:03]} Bg7 {[%emt 0:00:19]} 6. O-O {[%emt 0:00:15]} e6 {[%emt 0:01:12]} 7. c3 {[%emt 0:00:31]} Nge7 {[%emt 0:03:43]} 8. d4 {[%emt 0:05:00]} O-O {[%emt 0:03:05]} 9. dxc5 {[%emt 0:05:51]} dxc5 {[%emt 0:00:22]} 10. Qe2 {[%emt 0:00:08]} Qc7 {[%emt 0:03:07]} 11. Na3 {[%emt 0:02:59]} a6 {[%emt 0:01:41]} 12. Be3 {[%emt 0:00:30]} b6 {[%emt 0:02:33]} 13. Rfd1 {[%emt 0:01:21]} Bb7 {[%emt 0:01:42]} 14. Nc4 {[%emt 0:11:22]} Rfd8 {[%emt 0:02:08]} 15. a4 {[%emt 0:00:34]} Na7 {[%emt 0:16:50]} 16. Bf4 {[%emt 0:03:36]} Qc6 {[%emt 0:01:41]} 17. Nfe5 {[%emt 0:04:04]} Bxe5 {[%emt 0:00:23]} 18. Nxe5 {[%emt 0:00:22]} Qc8 {[%emt 0:00:18]} 19. Rxd8+ {[%emt 0:02:39]} Qxd8 {[%emt 0:00:53]} 20. Rd1 {[%emt 0:00:01]} Qc8 {[%emt 0:02:57]} 21. Nd7 {[%emt 0:01:42]} Qc6 {[%emt 0:01:06]} 22. Rd6 {[%emt 0:00:30]} Qxa4 {[%emt 0:00:57]} 23. Nxb6 {[%emt 0:00:13]} Qe8 {[%emt 0:01:43]} 24. Nxa8 {[%emt 0:02:43]} Qxa8 {[%emt 0:00:14]} 25. Qd2 {[%emt 0:01:06]} Nac6 {[%emt 0:02:08]} 26. Bg5 {[%emt 0:00:56]} 1-0

[Event "41st Jacques-Lemans-Open 2022"]
[Site "St. Veit/Glan"]
[Date "2022.07.09"]
[Round "1.21"]
[White "Enne, Harald"]
[Black "Lerch, Johannes"]
[Result "0-1"]
[ECO "E39"]
[WhiteElo "1919"]
[BlackElo "2222"]
[Annotator "RC"]
[PlyCount "151"]
[EventDate "2022.07.09"]
[EventType "swiss"]
[EventCountry "AUT"]
[SourceTitle "playchess.com"]
[Source "ChessBase"]
[SourceQuality "1"]
[TimeControl "40/5400+30:1800+30"]

1. d4 {[%emt 0:00:07]} Nf6 {[%emt 0:00:05]} 2. c4 {[%emt 0:00:06]} e6 {[%emt 0:00:05]} 3. Nc3 {[%emt 0:00:08]} Bb4 {[%emt 0:00:05]} 4. Qc2 {[%emt 0:00:16]} c5 {[%emt 0:00:06]} 5. dxc5 {[%emt 0:00:43]} O-O {[%emt 0:00:19]} 6. a3 {[%emt 0:01:39]} Bxc5 {[%emt 0:02:09]} 7. Nf3 {[%emt 0:02:53]} Nc6 {[%emt 0:00:41]} 8. e3 {[%emt 0:13:39]} Be7 {[%emt 0:06:05]} 9. Bd3 {[%emt 0:10:37]} h6 {[%emt 0:05:19]} 10. O-O {[%emt 0:00:36]} a6 {[%emt 0:04:43]} 11. Rd1 {[%emt 0:06:45]} Qc7 {[%emt 0:08:50]} 12. e4 {[%emt 0:10:28]} Ne5 {[%emt 0:06:23]} 13. Nxe5 {[%emt 0:01:08]} Qxe5 {[%emt 0:00:05]} 14. h3 {[%emt 0:05:44]} Qc7 {[%emt 0:13:27]} 15. Qe2 {[%emt 0:02:32]} d6 {[%emt 0:03:31]} 16. f4 {[%emt 0:04:19]} Nd7 {[%emt 0:04:57]} 17. b4 {[%emt 0:01:17]} b5 {[%emt 0:05:52]} 18. Bb2 {[%emt 0:13:06]} bxc4 {[%emt 0:00:07]} 19. Bxc4 {[%emt 0:00:24]} Qa7+ {[%emt 0:11:00]} 20. Kh1 {[%emt 0:01:20]} Nb6 {[%emt 0:02:43]} 21. Bd3 {[%emt 0:03:14]} Rd8 {[%emt 0:02:21]} 22. Qf3 {[%emt 0:14:31]} Bd7 {[%emt 0:02:57]} 23. Qg3 {[%emt 0:00:41]} Bf8 {[%emt 0:04:55]} 24. f5 {[%emt 0:01:20]} e5 {[%emt 0:06:58]} 25. f6 {[%emt 0:00:35]} g6 {[%emt 0:03:06]} 26. Be2 {[%emt 0:01:42]} Be6 {[%emt 0:00:51]} 27. h4 {[%emt 0:01:30]} Kh7 {[%emt 0:00:53]} 28. Bc1 {[%emt 0:00:45]} Qb7 {[%emt 0:02:19]} 29. h5 {[%emt 0:00:23]} Rac8 {[%emt 0:00:42]} 30. hxg6+ {[%emt 0:00:20]} fxg6 {[%emt 0:00:01]} 31. Nd5 {[%emt 0:02:02]} Nxd5 {[%emt 0:01:17]} 32. exd5 {[%emt 0:00:01]} Bxd5 {[%emt 0:00:46]} 33. Be3 {[%emt 0:01:33]} Be4 {[%emt 0:01:16]} 34. Rac1 {[%emt 0:00:19]} Bf5 {[%emt 0:01:19]} 35. Bf3 {[%emt 0:00:35]} Qf7 {[%emt 0:00:42]} 36. Qh4 {[%emt 0:00:28]} Rxc1 {[%emt 0:00:34]} 37. Rxc1 {[%emt 0:00:03]} d5 {[%emt 0:00:39]} 38. Rc6 {[%emt 0:00:48]} e4 {[%emt 0:00:25]} 39. Be2 {[%emt 0:00:15]} d4 {[%emt 0:00:19]} 40. Bf4 {[%emt 0:00:36]} d3 {[%emt 0:00:35]} 41. Bd1 {[%emt 0:04:18]} a5 {[%emt 0:18:29]} 42. Rc7 {[%emt 0:11:18]} Rd7 {[%emt 0:00:06]} 43. Rc8 {[%emt 0:02:26]} Ra7 {[%emt 0:04:16]} 44. Bb3 {[%emt 0:04:23]} Qxb3 {[%emt 0:05:14]} 45. Rxf8 {[%emt 0:08:28]} Qd1+ {[%emt 0:00:04]} 46. Kh2 {[%emt 0:00:05]} Qh5 {[%emt 0:00:04]} 47. Qxh5 {[%emt 0:01:03]} gxh5 {[%emt 0:00:01]} 48. Be3 {[%emt 0:00:45]} Rd7 {[%emt 0:04:29]} 49. Bd2 {[%emt 0:01:43]} axb4 {[%emt 0:00:29]} 50. axb4 {[%emt 0:00:27]} e3 {[%emt 0:00:59]} 51. Bxe3 {[%emt 0:00:07]} d2 {[%emt 0:00:02]} 52. Bxd2 {[%emt 0:00:45]} Rxd2 {[%emt 0:00:06]} 53. f7 {[%emt 0:00:56]} Kg7 {[%emt 0:00:11]} 54. Rh8 {[%emt 0:00:39]} Kxf7 {[%emt 0:00:04]} 55. Rxh6 {[%emt 0:00:08]} Bg6 {[%emt 0:01:33]} 56. Rh8 {[%emt 0:00:01]} Kg7 {[%emt 0:00:38]} 57. Rc8 {[%emt 0:00:32]} Be4 {[%emt 0:00:42]} 58. Rc5 {[%emt 0:00:54]} Kh6 {[%emt 0:01:13]} 59. Kh3 {[%emt 0:00:43]} Bxg2+ {[%emt 0:01:12]} 60. Kg3 {[%emt 0:00:09]} Be4 {[%emt 0:00:20]} 61. Kh4 {[%emt 0:00:50]} Rh2+ {[%emt 0:00:37]} 62. Kg3 {[%emt 0:00:02]} Rg2+ {[%emt 0:00:10]} 63. Kh4 {[%emt 0:00:53]} Bg6 {[%emt 0:00:40]} 64. b5 {[%emt 0:00:26]} Rb2 {[%emt 0:00:06]} 65. Re5 {[%emt 0:00:29]} Rb4+ {[%emt 0:00:07]} 66. Kg3 {[%emt 0:00:39]} Kg7 {[%emt 0:00:26]} 67. Rc5 {[%emt 0:00:45]} Kf6 {[%emt 0:00:07]} 68. Rc6+ {[%emt 0:00:22]} Kg5 {[%emt 0:00:02]} 69. Rc5+ {[%emt 0:00:07]} Bf5 {[%emt 0:00:04]} 70. Re5 {[%emt 0:00:46]} Rb3+ {[%emt 0:00:11]} 71. Kg2 {[%emt 0:00:26]} Kg4 {[%emt 0:00:08]} 72. Kh2 {[%emt 0:00:54]} Rb2+ {[%emt 0:00:50]} 73. Kg1 {[%emt 0:00:17]} h4 {[%emt 0:00:17]} 74. Re1 {[%emt 0:00:41]} Rxb5 {[%emt 0:00:27]} 75. Kh2 {[%emt 0:00:27]} Rb2+ {[%emt 0:00:04]} 76. Kh1 {[%emt 0:01:08]} 0-1

[Event "41st Jacques-Lemans-Open 2022"]
[Site "St. Veit/Glan"]
[Date "2022.07.09"]
[Round "1.22"]
[White "Gschiel, Alexander"]
[Black "Hafner, Robert"]
[Result "1/2-1/2"]
[ECO "D11"]
[WhiteElo "2215"]
[BlackElo "1933"]
[Annotator "RC"]
[PlyCount "75"]
[EventDate "2022.07.09"]
[EventType "swiss"]
[EventCountry "AUT"]
[SourceTitle "playchess.com"]
[Source "ChessBase"]
[SourceQuality "1"]
[TimeControl "40/5400+30:1800+30"]

1. d4 {[%emt 0:00:09]} d5 {[%emt 0:00:10]} 2. c4 {[%emt 0:00:10]} c6 {[%emt 0:00:04]} 3. Nf3 {[%emt 0:00:12]} Nf6 {[%emt 0:00:03]} 4. g3 {[%emt 0:00:20]} Bf5 {[%emt 0:00:15]} 5. Bg2 {[%emt 0:00:31]} e6 {[%emt 0:00:05]} 6. O-O {[%emt 0:00:08]} Nbd7 {[%emt 0:05:10]} 7. Nbd2 {[%emt 0:05:33]} h6 {[%emt 0:02:31]} 8. b3 {[%emt 0:07:48]} Be7 {[%emt 0:00:12]} 9. Bb2 {[%emt 0:00:22]} O-O {[%emt 0:00:05]} 10. Ne5 {[%emt 0:04:32]} Qb6 {[%emt 0:07:35]} 11. e3 {[%emt 0:12:20]} Rfd8 {[%emt 0:09:52]} 12. Ndf3 {[%emt 0:12:30]} Nxe5 {[%emt 0:02:32]} 13. Nxe5 {[%emt 0:00:48]} Nd7 {[%emt 0:04:42]} 14. g4 {[%emt 0:05:11]} Bh7 {[%emt 0:05:40]} 15. Nxd7 {[%emt 0:05:32]} Rxd7 {[%emt 0:00:05]} 16. Qe2 {[%emt 0:02:42]} Rc8 {[%emt 0:24:19]} 17. c5 {[%emt 0:07:01]} Qc7 {[%emt 0:00:33]} 18. f4 {[%emt 0:01:24]} b6 {[%emt 0:07:29]} 19. b4 {[%emt 0:03:58]} a5 {[%emt 0:00:57]} 20. a3 {[%emt 0:00:47]} Rb8 {[%emt 0:03:44]} 21. Bc3 {[%emt 0:02:05]} axb4 {[%emt 0:00:58]} 22. axb4 {[%emt 0:01:00]} Bf6 {[%emt 0:06:02]} 23. Ra6 {[%emt 0:04:25]} bxc5 {[%emt 0:00:59]} 24. bxc5 {[%emt 0:00:07]} Qc8 {[%emt 0:02:28]} 25. Rfa1 {[%emt 0:06:24]} Rdb7 {[%emt 0:01:06]} 26. Qd2 {[%emt 0:02:10]} Rb1+ {[%emt 0:00:42]} 27. Bf1 {[%emt 0:00:57]} Rxa1 {[%emt 0:01:20]} 28. Rxa1 {[%emt 0:00:22]} Ra8 {[%emt 0:01:21]} 29. Rxa8 {[%emt 0:02:56]} Qxa8 {[%emt 0:00:05]} 30. Ba5 {[%emt 0:00:07]} Be4 {[%emt 0:02:40]} 31. Qb4 {[%emt 0:01:24]} Bd8 {[%emt 0:02:39]} 32. Bb6 {[%emt 0:04:41]} Qa1 {[%emt 0:04:01]} 33. Qd2 {[%emt 0:02:37]} Bh4 {[%emt 0:00:52]} 34. Ba5 {[%emt 0:00:57]} Qb1 {[%emt 0:01:58]} 35. Bc3 {[%emt 0:00:44]} Kh7 {[%emt 0:00:43]} 36. Qb2 {[%emt 0:01:30]} Qd1 {[%emt 0:00:43]} 37. Qe2 {[%emt 0:00:02]} Qc1 {[%emt 0:01:20]} 38. Qd2 {[%emt 0:01:33]} 1/2-1/2

[Event "41st Jacques-Lemans-Open 2022"]
[Site "St. Veit/Glan"]
[Date "2022.07.09"]
[Round "1.23"]
[White "Huber, Mario"]
[Black "Wiens, Helmut"]
[Result "1/2-1/2"]
[ECO "B00"]
[WhiteElo "2125"]
[BlackElo "2196"]
[Annotator "RC"]
[PlyCount "50"]
[EventDate "2022.07.09"]
[EventType "swiss"]
[EventCountry "AUT"]
[SourceTitle "playchess.com"]
[Source "ChessBase"]
[SourceQuality "1"]
[TimeControl "40/5400+30:1800+30"]

1. e4 {[%emt 0:00:11]} d6 {[%emt 0:00:23]} 2. Nf3 {[%emt 0:00:21]} Nf6 {[%emt 0:00:20]} 3. c3 {[%emt 0:02:50]} e5 {[%emt 0:02:00]} 4. d4 {[%emt 0:03:53]} exd4 {[%emt 0:10:43]} 5. Qxd4 {[%emt 0:05:48]} Be7 {[%emt 0:01:00]} 6. Bb5+ {[%emt 0:02:53]} Bd7 {[%emt 0:02:33]} 7. Bxd7+ {[%emt 0:01:40]} Qxd7 {[%emt 0:00:36]} 8. O-O {[%emt 0:00:51]} Nc6 {[%emt 0:00:11]} 9. Qd1 {[%emt 0:02:59]} O-O {[%emt 0:03:44]} 10. Re1 {[%emt 0:00:18]} Rfe8 {[%emt 0:02:57]} 11. Bg5 {[%emt 0:08:53]} Ng4 {[%emt 0:15:05]} 12. Bf4 {[%emt 0:00:53]} Bf6 {[%emt 0:09:52]} 13. Nbd2 {[%emt 0:02:50]} Re7 {[%emt 0:04:38]} 14. Qc2 {[%emt 0:03:21]} Rae8 {[%emt 0:01:52]} 15. Rad1 {[%emt 0:00:28]} Nge5 {[%emt 0:00:50]} 16. Nd4 {[%emt 0:03:05]} g6 {[%emt 0:12:38]} 17. h3 {[%emt 0:04:38]} Qc8 {[%emt 0:09:56]} 18. Bh6 {[%emt 0:07:10]} Nd7 {[%emt 0:00:33]} 19. Nxc6 {[%emt 0:01:52]} bxc6 {[%emt 0:00:06]} 20. Qa4 {[%emt 0:05:37]} Qb7 {[%emt 0:00:25]} 21. Qb3 {[%emt 0:02:47]} Qa6 {[%emt 0:00:26]} 22. f3 {[%emt 0:02:27]} Rb8 {[%emt 0:00:13]} 23. Qc4 {[%emt 0:01:27]} Qb7 {[%emt 0:06:11]} 24. Qb3 {[%emt 0:06:48]} Qa6 {[%emt 0:00:07]} 25. Qc4 {[%emt 0:00:19]} Qb7 {[%emt 0:00:29]} 1/2-1/2

[Event "41st Jacques-Lemans-Open 2022"]
[Site "St. Veit/Glan"]
[Date "2022.07.09"]
[Round "1.24"]
[White "Ofner, Maximilian"]
[Black "Kuhn, Maximilian"]
[Result "1-0"]
[ECO "A09"]
[WhiteElo "2194"]
[BlackElo "1920"]
[Annotator "RC"]
[PlyCount "69"]
[EventDate "2022.07.09"]
[EventType "swiss"]
[EventCountry "AUT"]
[SourceTitle "playchess.com"]
[Source "ChessBase"]
[SourceQuality "1"]
[TimeControl "40/5400+30:1800+30"]

1. Nf3 {[%emt 0:00:06]} d5 {[%emt 0:00:19]} 2. c4 {[%emt 0:00:06]} d4 {[%emt 0:00:06]} 3. b4 {[%emt 0:00:11]} g5 {[%emt 0:00:10]} 4. Bb2 {[%emt 0:02:18]} Bg7 {[%emt 0:00:57]} 5. Nxg5 {[%emt 0:01:43]} e5 {[%emt 0:00:08]} 6. Ne4 {[%emt 0:01:12]} f5 {[%emt 0:00:12]} 7. Nc5 {[%emt 0:00:53]} b6 {[%emt 0:00:06]} 8. Qa4+ {[%emt 0:01:19]} Kf7 {[%emt 0:00:09]} 9. Nd3 {[%emt 0:05:32]} Ne7 {[%emt 0:00:26]} 10. Na3 {[%emt 0:06:32]} Re8 {[%emt 0:05:19]} 11. O-O-O {[%emt 0:02:38]} a5 {[%emt 0:04:58]} 12. b5 {[%emt 0:10:08]} Nd7 {[%emt 0:12:40]} 13. g4 {[%emt 0:11:18]} e4 {[%emt 0:03:37]} 14. Nf4 {[%emt 0:02:11]} Nc5 {[%emt 0:00:35]} 15. Qc2 {[%emt 0:00:32]} Qd6 {[%emt 0:06:03]} 16. Nh5 {[%emt 0:11:03]} Bh8 {[%emt 0:02:04]} 17. d3 {[%emt 0:15:57]} fxg4 {[%emt 0:10:45]} 18. Ng3 {[%emt 0:02:03]} exd3 {[%emt 0:09:03]} 19. exd3 {[%emt 0:00:22]} Nf5 {[%emt 0:03:59]} 20. Bg2 {[%emt 0:01:08]} Rb8 {[%emt 0:01:25]} 21. Bd5+ {[%emt 0:02:14]} Kg6 {[%emt 0:02:31]} 22. Ne4 {[%emt 0:02:09]} Qf4+ {[%emt 0:01:38]} 23. Kb1 {[%emt 0:00:46]} Bb7 {[%emt 0:04:33]} 24. Bc1 {[%emt 0:01:11]} Qe5 {[%emt 0:01:07]} 25. Bxb7 {[%emt 0:05:12]} Nxb7 {[%emt 0:05:29]} 26. h3 {[%emt 0:00:39]} Nfd6 {[%emt 0:03:11]} 27. Nxd6 {[%emt 0:00:29]} Nxd6 {[%emt 0:00:25]} 28. hxg4 {[%emt 0:01:12]} Qe2 {[%emt 0:03:38]} 29. Rh6+ {[%emt 0:00:29]} Kg7 {[%emt 0:00:20]} 30. Rdh1 {[%emt 0:00:22]} Qxg4 {[%emt 0:02:02]} 31. Rxh7+ {[%emt 0:01:05]} Kf6 {[%emt 0:00:08]} 32. R1h6+ {[%emt 0:05:00]} Kf5 {[%emt 0:00:39]} 33. Rh4 {[%emt 0:02:04]} Re2 {[%emt 0:00:08]} 34. Rxg4 {[%emt 0:00:45]} Rxc2 {[%emt 0:00:07]} 35. Rg5+ {[%emt 0:00:07]} 1-0